Cogmind - Beta 16 --- EXPLORER MODE // 2025.11.11 @ 22:05:04 Player: itiswindytoday Result: Self-destructed Performance ------------- Evolutions (1) 500 Regions Visited (2) 400 Robots Destroyed (35) 175 Value Destroyed (964) 964 Prototype IDs (2) 40 Alien Tech Used (0) 0 Bonus (0) 0 TOTAL SCORE: 2079 Bonus ------- None Cogmind --------- Core Integrity 382/400 Matter 200/300 Energy 250/250 System Corruption 0% Temperature Cool (0) Movement Treading (240) Ox1 Location -9/Materials Parts ------- > --- POWER (1) -------- Ion Engine > --- PROPULSION (3) --- Light Treads Light Treads Improved Treads > --- UTILITY (3) ------ Huge Storage Unit Shield Generator Field Recycling Unit > --- WEAPON (3) ------- EM Pulse Gun EM Pulse Cannon Heavy Assault Rifle > --- INVENTORY (25) --- Ion Engine Cooled Ion Engine Light Deuterium Engine Aluminum Leg Aluminum Leg Heat Sink Medium Storage Unit Visual Processing Unit Seismic Detector Core Shielding Light Armor Plating Shield Generator Small Laser Assault Rifle Assault Rifle Grenade Launcher Mace Peak State ------------ > --- POWER ------------ Light Deuterium Engine > --- PROPULSION ------- Light Treads Light Treads Improved Treads > --- UTILITY ---------- Huge Storage Unit Shield Generator Field Recycling Unit > --- WEAPON ----------- EM Pulse Gun Heavy EM Pulse Gun Small Laser > --- INVENTORY -------- Ion Engine Ion Engine Cooled Ion Engine Aluminum Leg Aluminum Leg Heat Sink Medium Storage Unit Visual Processing Unit Seismic Detector Core Shielding Light Armor Plating Shield Generator Assault Rifle Assault Rifle Heavy Assault Rifle Grenade Launcher Mace [Rating: 18] Favorites ----------- Power Ion Engine Engine Ion Engine Propulsion Light Treads Treads Light Treads Leg Aluminum Leg Utility Huge Storage Unit Device Shield Generator Storage Huge Storage Unit Protection Light Armor Plating Weapon EM Pulse Gun Energy Gun EM Pulse Gun Energy Cannon EM Pulse Cannon Ballistic Gun Heavy Assault Rifle Launcher Grenade Launcher Build | -11 -10 -9 ------- Run | Yrd Mat Mat Slots Evolved 3 | . 1 2 Power . | . . . Propulsion 1 | . . 1 Utility 1 | . 1 . Weapon 1 | . . 1 Parts Attached 18 | 7 2 9 Power 2 | 1 . 1 Engine 2 | 1 . 1 Core . | . . . Reactor . | . . . Propulsion 4 | 2 . 2 Treads 3 | 2 . 1 Leg 1 | . . 1 Wheel . | . . . Hover . | . . . Flight . | . . . Utility 6 | 2 2 2 Device 3 | . 1 2 Storage 2 | 1 1 . Processor . | . . . Hackware . | . . . Protection 1 | 1 . . Artifact . | . . . Weapon 6 | 2 . 4 Energy Gun 3 | 2 . 1 Energy Cannon 1 | . . 1 Ballistic Gun 1 | . . 1 Ballistic Cannon . | . . . Launcher 1 | . . 1 Special Weapon . | . . . Impact Weapon . | . . . Slashing Weapon . | . . . Piercing Weapon . | . . . Special Melee Weapon . | . . . Unidentified Prototypes . | . . . Parts Lost . | . . . Power . | . . . Propulsion . | . . . Utility . | . . . Weapon . | . . . Highest Loss Streak . | . . . To Critical Strikes . | . . . Average Backups 10 | 4 7 14 Power 1 | . 1 2 Propulsion 1 | 1 2 1 Utility 3 | . 2 5 Weapon 3 | . 2 4 Tool/Special . | . . . Unused Backups 11 | . . 11 Power 2 | . . 2 Propulsion 1 | . . 1 Utility 4 | . . 4 Weapon 4 | . . 4 Tool/Special . | . . . Average Slot Usage (%) 97 | . 97 97 Engine 10 | . 12 10 Treads 27 | . 25 29 Device 8 | . 3 11 Storage 16 | . 18 14 Protection 7 | . 12 3 Energy Gun 23 | . 25 23 Energy Cannon 1 | . . 2 Ballistic Gun 1 | . . 1 Peak Build Rating 18 | 7 9 18 Average Rating 11 | 6 8 14 On Entrance 5 | . 7 9 Avg Prop Armor Cover (%) . | . . . Naked Turns . | . . . Heaviest Build 106 | 21 101 106 Greatest Support 63 | 40 40 63 Greatest Overweight (x) 35 | . 2 35 Average Overweight (x) . | . . 1 Largest Inventory Capacity 25 | 10 25 25 Average Capacity 20 | 9 18 25 Most Carried 18 | 6 9 18 Average Carried 10 | 4 7 14 Final Capacity 25 | 10 25 25 Final Carried 17 | 6 9 17 Class Distribution -------------------- 58% | Hacker-Mutant 41% | Hacker-Tank Dominant Class ---------------- Hacker-Mutant | -10/Materials Hacker-Tank | -9/Materials Resources | -11 -10 -9 ----------- Run | Yrd Mat Mat Matter Collected 320 | 270 20 30 Remotely . | . . . Salvage Created 1444 | 68 275 1101 Parts 71 | 11 13 47 Haulers Intercepted . | . . . Recyclers Shooed . | . . . Parts Field Recycled 5 | . . 5 Retrieved Matter 29 | . . 29 Parts Self-Destructed . | . . . Prevented . | . . . Parts Restored . | . . . Kills | -11 -10 -9 ------- Run | Yrd Mat Mat Combat Hostiles Destroyed 24 | . 5 19 Guns 23 | . 5 18 AOE 1 | . . 1 Classes Destroyed 10 | 2 4 4 Worker 1 | 1 . . Builder 1 | . . 1 Tunneler 3 | 3 . . Recycler 1 | . 1 . Watcher 5 | . 2 3 Swarmer 2 | . 2 . Grunt 15 | . 3 12 Brawler 1 | . . 1 Duelist 1 | . . 1 Sentry 5 | . . 5 Best Kill Streak 8 | 4 3 8 Combat Bots Only 6 | . 3 6 Max Kills in Single Turn 2 | 1 1 2 Gunslinging 1 | . . 1 Exploded 1 | . . 1 Melee . | . . . Uniques/NPCs Destroyed . | . . . Combat | -11 -10 -9 -------- Run | Yrd Mat Mat Hostile Shots Fired 74 | . 13 61 Missed 28 | . 2 26 Hits 46 | . 11 35 Melee 2 | . . 2 Projectile 44 | . 11 33 Damage Taken 294 | . 64 230 Core 18 | . . 18 Absorbed by Shields 66 | . . 66 Ignored by Resistances 224 | . 44 180 Regen/Repaired (Parts) 117 | . . 117 Core Remaining (%) 100 | 100 100 . Volleys Fired 62 | 8 13 41 Largest 3 | 2 2 3 Hottest 143 | 80 80 143 Shots Fired 157 | 16 25 116 Gun 151 | 16 25 110 Cannon 4 | . . 4 Launcher 2 | . . 2 Special . | . . . Kinetic 3 | . . 3 Thermal 55 | 8 12 35 Explosive 2 | . . 2 Electromagnetic 97 | 8 13 76 Robot Hit Streak 39 | 5 17 39 Robot Miss Streak 2 | 2 1 1 Penetration Max . | . . . Secondary Targets 5 | . 1 4 Max Gunslinging Chain 1 | . 1 1 Shots Hit Robots 125 | 11 18 96 Core Hits 55 | 4 10 41 Critical Kills . | . . . Critical Parts Destroyed . | . . . Critical Strikes 3 | . . 3 Corrupt 3 | . . 3 Melee Attacks . | . . . Impact . | . . . Slashing . | . . . Piercing . | . . . Sneak Attacks . | . . . Combat Hostiles . | . . . Follow-up Attacks . | . . . Damage Inflicted 1825 | 140 242 1443 Guns 1651 | 120 235 1296 Cannons 62 | . . 62 Explosions 105 | 20 . 85 Melee . | . . . Ramming 7 | . 7 . Kinetic 48 | . . 48 Thermal 498 | 62 78 358 Explosive 10 | . . 10 Electromagnetic 1262 | 78 157 1027 Impact . | . . . Slashing . | . . . Piercing . | . . . Highest Corruption . | . . . Average Corruption . | . . . Corruption Purged . | . . . Corruption Blocked . | . . . Overload Shots . | . . . Overflow Damage . | . . . Projectiles . | . . . Explosions . | . . . Melee . | . . . Knockbacks . | . . . Impact . | . . . Kinetic . | . . . Secondary . | . . . Self-Inflicted Damage . | . . . Shots . | . . . Rammed . | . . . Targets Rammed 1 | . 1 . Kicked . | . . . Crushed 1 | . 1 . Highest Temperature 311 | 93 195 311 Average Temperature 83 | 35 69 93 Received Heat Transfer 174 | . 42 132 Effects 1 | . . 1 Energy Bleed 1 | . . 1 Siege Activations . | . . . Martial Activations . | . . . Shielding Activations . | . . . Robots Disrupted . | . . . Combat Hostiles . | . . . Robots Corrupted . | . . . Combat Hostiles . | . . . Parts Fried 2 | . . 2 Impact Corruptions . | . . . Robots Melted . | . . . Combat Hostiles . | . . . Parts Melted . | . . . Heat Transferred 1125 | 100 175 850 Parts Sabotaged . | . . . Parts Stolen . | . . . Parts Stripped . | . . . Power Chain Reactions 3 | 1 . 2 Alert | -11 -10 -9 ------- Run | Yrd Mat Mat Maximum Alert Level . | . . . Low Security (%) 100 | 100 100 100 Level 1 . | . . . Level 2 . | . . . Level 3 . | . . . Level 4 . | . . . Level 5 . | . . . High Security . | . . . Max Security . | . . . Peak Influence 173 | 10 70 173 Initial 4 | . 4 . Average 32 | . 7 55 Influence Increases 734 | 20 153 561 Destroy 0b10 Robot/C 480 | . 100 380 Destroy 0b10 Robot/NC 55 | 20 15 20 Destroy Leader 150 | . 24 126 Successful Hack 33 | . 14 19 Destroy Structure 16 | . . 16 Influence Decreases 734 | 10 163 561 Entered New Map 6 | . 6 . Time Decay 728 | 10 157 561 Squads Dispatched 5 | . 1 4 Investigation 3 | . 1 2 Extermination . | . . . Reinforcement 2 | . . 2 Assault . | . . . Garrison . | . . . Intercept . | . . . Searches Triggered . | . . . Construction Impeded . | . . . Haulers Reinforced . | . . . Active Scanning Responses . | . . . Cargo Convoy Interrupts . | . . . Stealth | -11 -10 -9 --------- Run | Yrd Mat Mat Distress Signals 6 | . 1 5 Communications Jammed . | . . . Distress Signals . | . . . Times Spotted 35 | . 7 28 Peak Tracking Total 3 | . 2 3 Tactical Retreats . | . . . Traps | -11 -10 -9 ------- Run | Yrd Mat Mat Traps Triggered . | . . . Indirectly . | . . . Trap Hack Attempts . | . . . Triggered . | . . . Disarmed . | . . . Reprogrammed 1 | . . 1 Reused . | . . . Traps Extracted . | . . . Installed . | . . . Triggered . | . . . Machines | -11 -10 -9 ---------- Run | Yrd Mat Mat Machines Disabled . | . . . Max in Single Turn . | . . . Machines Repaired . | . . . Machines Dismantled . | . . . Machines Sabotaged . | . . . Overloaded Fab Kills . | . . . Hacking | -11 -10 -9 --------- Run | Yrd Mat Mat Machines Accessed 11 | . 4 7 Terminals 9 | . 4 5 Fabricators . | . . . Repair Stations 1 | . . 1 Recycling Units 1 | . . 1 Scanalyzers . | . . . Garrison Access . | . . . Total Hacks 37 | . 14 23 Successful 21 | . 7 14 Failed 16 | . 7 9 Catastrophic 4 | . . 4 Database Lockouts . | . . . Manual . | . . . Terminals 32 | . 14 18 Fabricators . | . . . Repair Stations 4 | . . 4 Recycling Units 1 | . . 1 Scanalyzers . | . . . Garrison Access . | . . . Terminal Hacks 16 | . 7 9 Record 7 | . 2 5 Robot Analysis 1 | . 1 . Prototype ID Bank 1 | . 1 . Level Access Points 1 | . 1 . Scanalyzer Index 1 | . 1 . Locate Traps 1 | . . 1 Reprogram Traps 1 | . . 1 Registered Prototypes 1 | . . 1 Zone Layout 2 | . 1 1 Fabricator Hacks . | . . . Repair Station Hacks 4 | . . 4 Scan Component 2 | . . 2 Repair 2 | . . 2 Recycling Unit Hacks 1 | . . 1 Retrieve Components 1 | . . 1 Scanalyzer . | . . . Garrison Access Hacks . | . . . Unauthorized Hacks . | . . . Terminals . | . . . Fabricators . | . . . Repair Stations . | . . . Recycling Units . | . . . Scanalyzers . | . . . Garrison Access . | . . . Data Cores Recovered . | . . . Used . | . . . Hacking Detections 10 | . 4 6 Full Trace Events 6 | . 3 3 Feedback Events . | . . . Feedback Blocked . | . . . Robot Schematics Acquired . | . . . Robots Built . | . . . Authchips . | . . . Time . | . . . Total Robot Build Rating . | . . . Part Schematics Acquired . | . . . Parts Built . | . . . Authchips . | . . . Time . | . . . Total Part Build Rating . | . . . Part Studies Acquired . | . . . Parts Repaired 2 | . . 2 Time 52 | . . 52 Parts Recycled . | . . . Recycled Matter . | . . . Retrieved Matter . | . . . Retrieved Components 2 | . . 2 Parts Scanalyzed . | . . . Part Schematics Acquired . | . . . Parts Damaged . | . . . Bothacking | -11 -10 -9 ------------ Run | Yrd Mat Mat Used RIF Installer . | . . . Robots Hacked . | . . . Non-combat . | . . . Combat . | . . . Robot Hacks Applied . | . . . Relay Couplers Released . | . . . Fabnet Peak Effective % . | . . . Robots Rewired . | . . . Allies Hacked . | . . . Hacks Repelled . | . . . Allies | -11 -10 -9 -------- Run | Yrd Mat Mat Total Allies . | . . . Largest Group . | . . . Highest-Rated Group . | . . . Highest-Rated Ally . | . . . Total Orders . | . . . Ally Attacks . | . . . Total Damage . | . . . Kills . | . . . Allies Corrupted . | . . . Allies Melted . | . . . Intel | -11 -10 -9 ------- Run | Yrd Mat Mat Active Infowar (turns) 188 | . 188 . Seismic 188 | . 188 . Robot Analysis Total 1 | . 1 . Derelict Logs Recovered . | . . . Drone Launches . | . . . Drone Recoveries . | . . . Exploration | -11 -10 -9 ------------- Run | Yrd Mat Mat Turns Passed 2014 | 229 723 1062 Spaces Moved 784 | 119 307 358 Core 5 | 4 . 1 Treads 779 | 115 307 357 Legs . | . . . Wheels . | . . . Hover . | . . . Flight . | . . . Fastest Speed 50 | 50 160 240 Average Speed 224 | 156 220 250 Slowest Speed 1800 | 160 320 1800 Overloaded Moves . | . . . Propulsion Burnouts . | . . . Robots Hopped . | . . . Potential Cave-ins . | . . . Cave-ins Triggered . | . . . Exploration Rate (%) 37 | 7 56 50 Regions Visited 2 Branch Regions . Pre-discovered Areas . | . . . Known Exits Taken 2 | 1 1 . Unknown Exits Taken . | . . . Scrap Searched . | . . . Spaces Dug . | . . . Terrain Destroyed 22 | 7 . 15 Melee . | . . . Projectile . | . . . AOE 22 | 7 . 15 Terrain Rammed . | . . . Walls Destroyed . | . . . Machines Disabled . | . . . Actions | -11 -10 -9 --------- Run | Yrd Mat Mat Total 901 | 146 326 429 Wait . | . . . Move 782 | 118 306 358 Hop . | . . . Pick Up 31 | 13 4 14 Fast Attach . | . . . Attach 13 | 7 1 5 Detach 1 | . . 1 Swap 9 | . 1 8 Drop 2 | . . 2 Fire 62 | 8 13 41 Melee . | . . . Ram . | . . . Kick . | . . . Crush 1 | . 1 . Escape Stasis . | . . . Rewire . | . . . Trap . | . . . Miscellaneous . | . . . Route ------- -11/Scrapyard -10/Materials (discovered 5 exits: *Mat x3 / *Min / *Sub) -9/Materials (discovered 2 exits: *Min x2) History --------- Turn | Location | Event 11 | -11/Scrapyard | Identified exit to Materials 11 | -11/Scrapyard | Discovered exit to Materials (range 15) 230 | -11/Scrapyard | Entered Materials 230 | -10/Materials | Evolved 1 slot: Utility x1 307 | -10/Materials | Build established: Hacker-Mutant 417 | -10/Materials | Identified exit to Mines 417 | -10/Materials | Discovered exit to Mines (range 17) 417 | -10/Materials | Identified exit to Materials 451 | -10/Materials | Identified exit to Subcaves 451 | -10/Materials | Discovered exit to Subcaves (range 5) 953 | -10/Materials | Entered another Materials area 953 | -9/Materials | Evolved 2 slots: Propulsion x1, Weapon x1 1481 | -9/Materials | Build established: Hacker-Tank 1481 | -9/Materials | Identified exit to Mines 1481 | -9/Materials | Discovered exit to Mines (range 12) 1862 | -9/Materials | Discovered exit to Mines (range 15) 1915 | -9/Materials | Repaired Lgt. Treads 1946 | -9/Materials | Repaired Lgt. Treads 2015 | -9/Materials | Self-destructed Last Messages --------------- Repair station completes Lgt. Treads repairs. K-01 Serf cleans the Nuclear Reactor. Acquired Lgt. Treads. K-01 Serf cleans the Nuclear Reactor. Connecting with Repair Station... >>Scan(Lgt. Treads) Scanning Lgt. Treads... Ready to Repair: Lgt. Treads Rating: 1 Time: 26 >>Repair Repairing Lgt. Treads... ETC: 26 K-01 Serf cleans the Nuclear Reactor. Repair station completes Lgt. Treads repairs. Acquired Lgt. Treads. K-01 Serf cleans the Pressure Siphon. Terminal unresponsive. K-01 Serf cleans the Pressure Siphon. Map ----- +----------------------------------------------------+ | ?????########### """" # #""" #????????? #? | | ?????# # """" # #""" #???????? #? | | ?????# # """" # #""" #???????? #? | | ?????# # # # #???##### ## | | ?????# """ """ #+###### #####+########"T"# # | | ?????# """ """ # # | | ?????# """ """ + !% + | | ?????# # % = """ """ # | | ?????# [# ##### ##### """ """ # | | #/########/##### #???# #???# """ """ ## | | #???#][[[* #???# ## | | #???#]][[**#???# "# | | % #???########???# """ """ "# | | #+####### %#??????????????# """% """ "# | | ##### ## #??????????????# """ """ T# | | ##""" # #??????????????# "# | | ##" # #??????????????# "# | | ##"| # #??????????????# "# | | ##"" > # #??###########?# ## | | ##"! # #??# T #?# #? | | ##" # #??# #?########## #? | | ##""" # #??# #?????????## # | | ##### ## #??# #?########## # | | #####???# #??#####+####### # %# | | #???????# ##### + """ # + | | #???????# t ! @ # R" # # | | ######### u k k # """ # *# | | % T // """" """" + # %# | | % % /k/ """" """" # """ / =# | | a /// """" """" # """ ### ## | | ######## # """ #??*#? | | #????# # #??[#? | | #????## ############ ##########??=#? | | #?##### #??????????# #???????????%#? | | #?## ################### #???????????!#? | | #?# + ????# #???????????!?? | | #?#! ########## ????# C#???????????>?? | | #?#! # #?# ????# [?????????????? | | #?#! # """ #?# ????# ?????????????? | | #?##! + """ #?# """ ????? "??????????????? | | ###?##### # """ #?# """ ??????????????????????? | | ????????# # #?# """ ??????????????????????? | | ????????# # #?# ??????????????????????? | | ????????? #????????????????????????????????????? | | ?????????????????????????????????????????????????? | | ?????????????????????????????????????????????????? | | ?????????????????????????????????????????????????? | | ?????????????????????????????????????????????????? | | ?????????????????????????????????????????????????? | | ?????????????????????????????????????????????????? | +----------------------------------------------------+ Best States ------------- Heat Dissipation 28 Energy Generation 14 Energy Capacity 250 Matter Stores 300 Matter Capacity 300 Sight Range 16 Terrain Scan Density 10 Armor Coverage 150 Resistance: KI 35 Resistance: TH 35 Resistance: EX 35 Resistance: EM 35 Resistance: I 35 Resistance: S 35 Resistance: P 35 Evasion (%) 40 Recoil Reduction 3 Offensive Hacking 20 Item Schematics ----------------- None Robot Schematics ------------------ None Fabricated ------------ Nothing Repaired ---------- Lgt. Treads | 57% | -9/Materials Lgt. Treads | 58% | -9/Materials Studied --------- None Alien Tech Used ----------------- None Achievements -------------- None Challenges ------------ None Game ------ Seed ActiveShockboltMegashotty Manual? 0 Play Time 00:28:29 Cumulative 1.1 hours Start 2025.11.11 @ 21:37:09 End 2025.11.11 @ 22:05:04 Sessions 1 Manual Loads 0 Difficulty Explorer Special Mode None Game No. 7 Rogue 0 Adventurer 0 Explorer 7 Win Type - Total 0 Types 0/0/0/0/0/0/0/0/0/0 Lore% 2 Gallery% 4 Achievement% 5 Wizard Run 0 Options --------- Layout 1 ASCII 0 Keyboard 0 Movement Mouse Keybinds 0 Fullscreen 1 Font 18/SmallcapsGlow Map View 51x43 Zoom Use 0% Tactical HUD 0 Map Filters NONE Filters NONE Steam X RUN: 9e007f78-69c3-43f4-9d4d-f570bdd68b5f